bitfinex/quotes_SOLUSD_20250525
["timestamp","ask_amount","ask_price","bid_price","bid_amount"]
[1748135090965,19.86192911,171.75,171.73,34.86]
[1748135091159,26.0,171.79,171.73,34.86]
[1748135091363,19.86192911,171.76,171.73,34.86]
[1748135091770,19.86192911,171.77,171.73,34.86]
[1748135092276,19.86192911,171.76,171.73,34.86]
[1748135092874,19.86192911,171.77,171.73,34.86]
[1748135093884,19.86192911,171.76,171.73,34.86]
[1748135094073,19.86192911,171.75,171.73,34.86]
[1748135094775,19.86192911,171.75,171.74,34.86]
[1748135095174,19.86192911,171.75,171.67,6.2941]
[1748135095364,19.86192911,171.7,171.68,34.86]
[1748135095555,26.0,171.75,171.68,34.86]
[1748135095761,19.86192911,171.73,171.68,54.72192911]
[1748135096481,19.86192911,171.7,171.68,34.86]
[1748135097576,19.86192911,171.7,171.69,269.64]
[1748135097776,19.86192911,171.71,171.69,269.64]
[1748135097978,19.86192911,171.7,171.69,217.54]
[1748135098278,19.86192911,171.7,171.69,304.5]
[1748135098481,19.86192911,171.7,171.69,86.96]
[1748135098870,26.0,171.75,171.69,86.96]
[1748135099175,19.86192911,171.7,171.69,34.86]
[1748135099561,26.0,171.75,171.69,34.86]
[1748135099770,19.86192911,171.74,171.69,54.72192911]
[1748135099983,19.86192911,171.75,171.69,54.72192911]
[1748135100355,19.86192911,171.73,171.69,34.86]
[1748135100554,19.86192911,171.72,171.69,34.86]
[1748135100763,4.00060296,171.83,171.72,6.1419]
[1748135100955,19.86192911,171.81,171.75,19.86192911]
[1748135101156,19.86192911,171.82,171.77,19.86192911]
[1748135101379,23.86253207,171.83,171.78,19.86192911]
[1748135101553,19.86192911,171.82,171.77,19.86192911]
[1748135102797,19.86192911,171.8,171.76,34.86]
[1748135102986,19.86192911,171.8,171.72,6.1419]
[1748135102987,19.86192911,171.77,171.72,6.1419]
[1748135103284,19.86192911,171.76,171.73,34.86]
[1748135103583,26.0,171.78,171.75,19.86192911]
[1748135103759,26.0,171.76,171.73,34.86]
[1748135104084,26.0,171.82,171.73,34.86]
[1748135104288,26.0,171.82,171.75,19.86192911]
[1748135104577,26.0,171.78,171.74,19.86192911]
[1748135104779,26.0,171.72,171.68,6.5727]
[1748135104978,45.86192911,171.69,171.63,6.5727]
[1748135105157,26.0,171.69,171.64,54.72192911]
[1748135105763,26.0,171.69,171.63,6.5727]
[1748135105764,26.0,171.67,171.63,26.43462911]
[1748135105968,45.86192911,171.64,171.58,6.5727]
[1748135106164,19.86192911,171.62,171.59,34.86]
[1748135106357,26.0,171.64,171.61,19.86192911]
[1748135106578,6.0131,171.79,171.58,6.5727]
[1748135106579,45.86192911,171.62,171.58,6.5727]
[1748135106784,19.86192911,171.61,171.59,34.86]
[1748135107387,19.86192911,171.64,171.59,34.86]
[1748135107692,25.99999998,171.66,171.62,30.18894283]
[1748135108604,4.00060296,171.77,171.65,30.18894283]
[1748135108605,18.79181043,171.76,171.65,30.18894283]
[1748135108809,18.79181043,171.76,171.6,30.18894283]
[1748135108810,30.18894283,171.71,171.66,65.04894283]
[1748135109016,18.79181043,171.76,171.66,34.86]
[1748135109017,30.18894283,171.7,171.66,34.86]
[1748135109491,30.18894283,171.69,171.66,34.86]
[1748135110102,56.18894283,171.68,171.66,34.86]
[1748135110285,30.18894283,171.67,171.66,34.86]
[1748135110784,26.0,171.65,171.54,1.9992]
[1748135110987,30.18894283,171.58,171.53,6.4574]
[1748135111314,26.0,171.64,171.54,65.04894283]
[1748135111615,30.18894283,171.59,171.54,65.04894283]
[1748135111822,26.0,171.64,171.54,34.86]
[1748135111823,30.18894283,171.57,171.54,34.86]
[1748135112427,26.0,171.6,171.5,30.18894283]
[1748135112428,30.18894283,171.55,171.5,30.18894283]
[1748135112735,30.18894283,171.55,171.51,34.86]
[1748135112892,30.18894283,171.54,171.51,34.86]
[1748135113098,30.18894283,171.55,171.52,34.88]
[1748135113317,30.18894283,171.54,171.52,34.88]
[1748135113528,0.14216157,171.61,171.52,34.88]
[1748135113817,30.18894283,171.55,171.52,34.88]
[1748135114021,44.79181043,171.6,171.52,34.88]
[1748135114022,30.18894283,171.54,171.52,34.88]
[1748135114805,26.0,171.63,171.52,34.88]
[1748135115214,30.18894283,171.59,171.54,30.18894283]
[1748135115395,30.18894283,171.56,171.52,34.88]
[1748135115725,30.18894283,171.53,171.52,34.88]
[1748135115895,30.18894283,171.54,171.52,34.88]
[1748135116298,26.0,171.57,171.52,34.88]
[1748135116499,30.18894283,171.53,171.52,34.88]
[1748135116805,30.18894283,171.53,171.48,30.18894283]
[1748135116806,26.0,171.57,171.47,6.4574]
[1748135117007,30.18894283,171.52,171.48,34.88]
[1748135117219,30.18894283,171.53,171.48,65.06894283]
[1748135117408,30.18894283,171.54,171.49,30.18894283]
[1748135117610,30.18894283,171.54,171.5,52.14]
[1748135117835,30.18894283,171.53,171.5,52.14]
[1748135118036,30.18894283,171.51,171.5,52.14]
[1748135118535,30.18894283,171.52,171.48,65.06894283]
[1748135118705,30.18894283,171.52,171.47,36.64634283]
[1748135118905,26.0,171.54,171.47,6.4574]
[1748135119229,30.18894283,171.5,171.48,34.9]
[1748135119412,30.18894283,171.49,171.41,6.275]
[1748135119614,26.0,171.47,171.42,34.9]
[1748135119930,30.18894283,171.43,171.37,30.18894283]
[1748135120126,18.79181043,171.49,171.38,65.08894283]
[1748135120339,30.18894283,171.46,171.41,30.18894283]
[1748135120504,30.18894283,171.49,171.38,34.9]
[1748135120836,2.056,171.58,171.38,34.9]
[1748135120837,6.4859,171.6,171.48,30.18894283]
[1748135121045,30.18894283,171.54,171.49,34.9]
[1748135121202,30.18894283,171.52,171.47,30.18894283]
[1748135121539,30.18894283,171.49,171.48,34.9]
[1748135121958,26.0,171.52,171.48,34.9]
[1748135122149,30.18894283,171.49,171.48,34.9]
[1748135122347,26.0,171.52,171.48,34.9]
[1748135122528,30.18894283,171.49,171.48,34.9]
[1748135122858,30.18894283,171.5,171.48,34.9]
[1748135123027,36.67484283,171.6,171.48,34.9]
[1748135123233,30.18894283,171.54,171.49,30.18894283]
[1748135123926,44.79181043,171.55,171.5,34.9]
[1748135124131,30.18894283,171.53,171.5,34.9]
[1748135125257,30.18894283,171.54,171.5,34.9]
[1748135125761,30.18894283,171.51,171.5,34.9]
[1748135126258,30.18894283,171.51,171.44,30.18894283]
[1748135126461,30.18894283,171.49,171.45,34.9]
[1748135126643,30.18894283,171.5,171.45,65.08894283]
[1748135126839,36.67484283,171.6,171.48,30.18894283]
[1748135126840,30.18894283,171.53,171.48,30.18894283]
[1748135127048,30.18894283,171.52,171.47,30.18894283]
[1748135127362,30.18894283,171.5,171.46,30.18894283]
[1748135127571,30.18894283,171.49,171.47,304.52]
[1748135127746,30.18894283,171.49,171.48,86.7]
[1748135127957,30.18894283,171.5,171.48,86.7]
[1748135128476,18.79181043,171.56,171.48,86.7]
[1748135128477,26.0,171.55,171.48,34.9]
[1748135128676,30.18894283,171.51,171.48,34.9]
[1748135128835,30.18894283,171.5,171.48,34.9]
[1748135129033,26.0,171.46,171.36,8.3942]
[1748135129249,30.18894283,171.43,171.38,30.18894283]
[1748135129444,26.0,171.46,171.4,30.18894283]
[1748135129752,30.18894283,171.46,171.41,30.18894283]
[1748135130062,26.0,171.5,171.42,65.08894283]
[1748135130254,30.18894283,171.47,171.42,65.08894283]
[1748135130456,26.0,171.5,171.42,65.08894283]
[1748135130661,30.18894283,171.48,171.42,65.08894283]
[1748135130954,26.0,171.5,171.42,34.9]
[1748135131255,30.18894283,171.47,171.42,65.08894283]
[1748135131679,26.0,171.5,171.42,54.81508644]
[1748135131975,19.91508644,171.49,171.44,19.91508644]
[1748135132764,19.91508644,171.48,171.43,19.91508644]
[1748135133164,19.91508644,171.49,171.44,19.91508644]
[1748135133371,19.91508644,171.51,171.46,19.91508644]
[1748135133562,18.79181043,171.56,171.47,54.83508644]
[1748135133563,19.91508644,171.52,171.47,54.83508644]
[1748135133759,19.91508644,171.52,171.48,34.92]
[1748135134074,19.91508644,171.51,171.48,34.92]
[1748135134278,19.91508644,171.49,171.3,19.91508644]
[1748135134579,19.91508644,171.44,171.39,19.91508644]
[1748135134755,19.91508644,171.42,171.3,19.91508644]
[1748135134962,19.91508644,171.4,171.36,6.275]
[1748135135181,19.91508644,171.4,171.37,34.92]
[1748135135568,19.91508644,171.4,171.36,6.275]
[1748135135787,44.64964886,171.45,171.37,34.92]
[1748135135988,19.91508644,171.41,171.37,34.92]
[1748135136358,19.91508644,171.4,171.37,34.92]
[1748135137272,19.91508644,171.39,171.34,19.91508644]
[1748135137468,19.91508644,171.39,171.38,34.92]
[1748135137892,19.91508644,171.39,171.35,51.82]
[1748135138066,19.91508644,171.36,171.32,26.19388644]
[1748135138265,0.14216157,171.41,171.33,54.83508644]
[1748135138266,19.91508644,171.38,171.33,54.83508644]
[1748135138994,19.91508644,171.41,171.36,19.91508644]
[1748135139561,19.91508644,171.37,171.32,6.2788]
[1748135139887,19.91508644,171.36,171.33,34.92]
[1748135140086,19.91508644,171.39,171.34,19.91508644]
[1748135140274,19.91508644,171.4,171.35,19.91508644]
[1748135140469,26.0,171.41,171.27,6.007]
[1748135140777,26.0,171.38,171.3,19.91508644]
[1748135140979,19.91508644,171.34,171.29,19.91508644]
[1748135141179,19.91508644,171.33,171.27,6.007]
[1748135141476,18.79181043,171.37,171.27,6.007]
[1748135141477,19.91508644,171.32,171.28,34.92]
[1748135142266,19.91508644,171.33,171.28,54.83508644]
[1748135142586,19.91508644,171.34,171.28,54.83508644]
[1748135142882,19.91508644,171.32,171.28,34.92]
[1748135143875,26.0,171.37,171.28,65.23213674]
[1748135144076,30.31213674,171.35,171.3,30.31213674]
[1748135144289,26.0,171.37,171.32,30.31213674]
[1748135144290,30.31213674,171.37,171.32,30.31213674]
[1748135144488,30.31213674,171.37,171.28,34.92]
[1748135144689,30.31213674,171.37,171.32,30.31213674]
[1748135145906,30.31213674,171.38,171.32,30.31213674]
[1748135146385,30.31213674,171.37,171.32,30.31213674]
[1748135146593,30.31213674,171.36,171.31,30.31213674]
[1748135147502,30.31213674,171.36,171.32,269.84]
[1748135147880,10.0,171.51,171.33,65.25213674]
[1748135148101,30.31213674,171.39,171.34,30.31213674]
[1748135148484,30.31213674,171.38,171.33,65.25213674]
[1748135148803,30.31213674,171.38,171.34,30.31213674]
[1748135149006,30.31213674,171.39,171.34,30.31213674]
[1748135149186,30.31213674,171.42,171.37,30.31213674]
[1748135149392,30.31213674,171.41,171.38,34.94]
[1748135149786,30.31213674,171.39,171.38,34.94]
[1748135150902,30.31213674,171.39,171.27,6.007]
[1748135151197,30.31213674,171.34,171.29,30.31213674]
[1748135151724,44.79181043,171.4,171.3,30.31213674]
[1748135151725,30.31213674,171.35,171.3,30.31213674]
[1748135151939,30.31213674,171.39,171.34,30.31213674]
[1748135152098,56.31213674,171.39,171.35,34.94]
[1748135152302,26.0,171.39,171.35,34.94]
[1748135152528,30.31213674,171.37,171.35,34.94]
[1748135152710,30.31213674,171.38,171.35,34.94]
[1748135153612,30.31213674,171.39,171.35,34.94]
[1748135153824,30.31213674,171.4,171.35,65.25213674]
[1748135154710,30.31213674,171.39,171.35,34.94]
[1748135156232,30.31213674,171.38,171.35,34.94]
[1748135156426,30.31213674,171.39,171.35,34.94]
[1748135157634,30.31213674,171.39,171.36,269.52]
[1748135157835,30.31213674,171.39,171.36,51.5]
[1748135158327,30.31213674,171.38,171.36,51.5]
[1748135158636,30.31213674,171.38,171.37,34.94]
[1748135159334,26.0,171.39,171.37,34.94]
[1748135159518,30.31213674,171.43,171.38,30.31213674]
[1748135160539,30.31213674,171.39,171.27,6.007]
[1748135160849,34.421951,171.38,171.33,30.31213674]
[1748135161138,4.10981426,171.38,171.34,65.25213674]
[1748135161435,34.421951,171.38,171.34,34.94]
[1748135161735,30.31213674,171.37,171.34,34.94]
[1748135161934,30.31213674,171.38,171.34,34.94]
[1748135162319,26.0,171.33,171.27,6.007]
[1748135162514,30.31213674,171.32,171.28,34.94]
[1748135162714,30.31213674,171.34,171.28,65.25213674]
[1748135162957,34.3127397,171.48,171.33,30.31213674]
[1748135162958,4.00060296,171.43,171.33,30.31213674]
[1748135163230,30.31213674,171.4,171.35,30.31213674]
[1748135163422,30.31213674,171.39,171.36,34.94]
[1748135163616,19.93267928,171.39,171.36,34.94]
[1748135164410,30.11310984,171.42,171.36,34.94]
[1748135164613,19.93267928,171.38,171.36,34.94]
[1748135165110,19.93267928,171.38,171.37,34.94]
[1748135165310,26.0,171.35,171.27,6.007]
[1748135165516,26.0,171.29,171.28,34.94]
[1748135166317,19.93267928,171.35,171.28,54.87267928]
[1748135166522,45.93267928,171.36,171.31,19.93267928]
[1748135166733,26.0,171.34,171.3,19.93267928]
[1748135166937,45.93267928,171.34,171.31,34.94]
[1748135167361,19.93267928,171.35,171.31,34.94]
[1748135167533,26.0,171.32,171.31,34.94]
[1748135167850,26.0,171.32,171.31,86.44]
[1748135168749,19.93267928,171.34,171.31,86.44]
[1748135168956,26.0,171.32,171.31,34.94]
[1748135170156,45.93267928,171.34,171.31,34.94]
[1748135170330,19.93267928,171.33,171.27,6.007]
[1748135170530,20.81121043,171.39,171.18,19.93267928]
[1748135170531,26.0,171.25,171.18,19.93267928]
[1748135170753,19.93267928,171.22,171.19,34.94]
[1748135170946,19.93267928,171.21,171.19,34.94]
[1748135171141,19.93267928,171.2,171.15,26.09247928]
[1748135171348,19.93267928,171.2,171.16,34.94]
[1748135171857,19.93267928,171.21,171.16,34.94]
[1748135172154,19.93267928,171.2,171.16,34.94]
[1748135172562,19.93267928,171.19,171.16,34.94]
[1748135172754,19.93267928,171.21,171.16,34.94]
[1748135172960,19.93267928,171.22,171.17,19.93267928]
[1748135173130,19.93267928,171.22,171.16,34.94]
[1748135173329,19.93267928,171.25,171.2,19.93267928]
[1748135173551,19.93267928,171.26,171.21,54.89267928]
[1748135173747,26.0,171.27,171.22,34.96]
[1748135173748,19.93267928,171.25,171.22,34.96]
[1748135173943,19.93267928,171.24,171.22,34.96]
[1748135174150,19.93267928,171.23,171.22,34.96]
[1748135174656,19.93267928,171.28,171.22,54.89267928]
[1748135174856,19.93267928,171.29,171.24,19.93267928]
[1748135175066,19.93267928,171.28,171.23,19.93267928]
[1748135176051,19.93267928,171.29,171.24,19.93267928]
[1748135176666,19.93267928,171.28,171.23,19.93267928]
[1748135177555,19.93267928,171.28,171.24,269.64]
[1748135177746,20.83861043,171.34,171.24,269.64]
[1748135177747,19.93267928,171.27,171.24,269.64]
[1748135178066,19.93267928,171.28,171.24,71.45267928]
[1748135178367,19.93267928,171.27,171.25,34.96]
[1748135178553,19.93267928,171.28,171.25,34.96]
[1748135179451,19.93267928,171.3,171.25,54.89267928]
[1748135180045,19.93267928,171.29,171.25,34.96]
[1748135180459,19.93267928,171.3,171.25,54.89267928]
[1748135181369,19.93267928,171.31,171.26,19.93267928]
[1748135181542,4.00060296,171.37,171.29,19.93267928]
[1748135181764,19.93267928,171.35,171.3,54.89267928]
[1748135182682,19.93267928,171.34,171.3,34.96]
[1748135182981,18.79181043,171.4,171.31,34.96]
[1748135183182,4.00060296,171.41,171.34,19.93267928]
[1748135183490,23.93328224,171.41,171.36,19.93267928]
[1748135183694,23.93328224,171.41,171.37,34.96]
[1748135183987,19.93267928,171.4,171.37,34.96]
[1748135184672,26.0,171.42,171.37,34.96]
[1748135184981,19.93267928,171.4,171.37,34.96]
[1748135186886,26.0,171.42,171.37,54.89267928]
[1748135187093,19.93267928,171.44,171.39,19.93267928]
[1748135187263,19.93267928,171.4,171.35,6.3912]
[1748135187458,19.93267928,171.38,171.36,218.08]
[1748135187666,19.93267928,171.38,171.37,86.08]
[1748135188893,19.93267928,171.38,171.31,6.3912]
[1748135189188,26.0,171.33,171.32,34.96]
[1748135189383,19.93267928,171.34,171.32,34.96]
[1748135189590,19.93267928,171.35,171.32,34.96]
[1748135190206,19.93267928,171.36,171.32,34.96]
[1748135190374,26.0,171.38,171.32,54.89267928]
[1748135190683,19.93267928,171.37,171.32,54.89267928]
[1748135190891,19.93267928,171.36,171.32,34.96]
[1748135192971,19.93267928,171.35,171.32,34.96]
[1748135193278,19.93267928,171.35,171.33,34.94]
[1748135193591,19.93267928,171.36,171.33,34.94]
[1748135195093,26.0,171.38,171.33,34.94]
[1748135195293,19.93267928,171.37,171.33,34.94]
[1748135195878,0.14216157,171.43,171.34,19.93267928]
[1748135196202,19.93267928,171.42,171.37,19.93267928]
[1748135196378,19.93267928,171.41,171.38,34.94]
[1748135197179,19.93267928,171.4,171.38,34.94]
[1748135197581,19.93267928,171.4,171.39,269.18]
[1748135197778,38.58232814,171.4,171.39,304.12]
[1748135198106,19.93267928,171.42,171.39,34.94]
[1748135198394,19.93267928,171.44,171.39,54.87267928]
[1748135198596,19.93267928,171.45,171.4,19.93267928]
[1748135198799,45.93267928,171.45,171.4,19.93267928]
[1748135198975,19.93267928,171.44,171.39,54.87267928]
[1748135199780,45.93267928,171.45,171.4,19.93267928]
[1748135199990,19.93267928,171.41,171.31,32.3912]
[1748135200178,19.93267928,171.39,171.31,6.3912]
[1748135200382,19.93267928,171.37,171.31,6.3912]
[1748135200606,19.93267928,171.32,171.28,2.1564]
[1748135200779,19.93267928,171.32,171.29,34.94]
[1748135201105,19.93267928,171.33,171.29,34.94]
[1748135202399,19.93267928,171.32,171.29,34.94]
[1748135202990,19.93267928,171.33,171.29,34.94]
[1748135203578,19.93267928,171.32,171.29,34.94]
[1748135204499,26.0,171.34,171.29,34.94]
[1748135204500,19.93267928,171.33,171.29,34.94]
[1748135204689,0.14216157,171.4,171.29,54.87267928]
[1748135204884,19.93267928,171.34,171.29,54.87267928]
[1748135205297,19.93267928,171.33,171.29,34.94]
[1748135205707,19.93267928,171.32,171.29,34.94]
[1748135205895,19.93267928,171.3,171.26,6.3912]
[1748135206100,19.93267928,171.3,171.08,8.19697786]
[1748135206101,26.0,171.3,171.27,34.94]
[1748135206281,45.93267928,171.28,171.21,6.1366]
[1748135206601,26.0,171.23,171.22,34.94]
[1748135207377,26.0,171.24,171.22,54.87267928]
[1748135207698,19.93267928,171.28,171.23,71.05267928]
[1748135207699,26.0,171.28,171.23,71.05267928]
[1748135207905,19.93267928,171.32,171.27,19.93267928]
[1748135208083,19.93267928,171.32,171.28,34.96]
[1748135208686,26.0,171.29,171.28,34.96]
[1748135209491,26.0,171.3,171.28,54.89267928]
[1748135209695,45.93267928,171.33,171.28,54.89267928]
[1748135210077,26.0,171.33,171.28,54.89267928]
[1748135210282,26.0,171.29,171.28,54.89267928]
[1748135210482,26.0,171.29,171.28,34.96]
[1748135211293,18.64964886,171.36,171.28,34.96]
[1748135211294,19.93267928,171.33,171.28,34.96]
[1748135211500,19.93267928,171.33,171.28,54.89267928]
[1748135212409,19.93267928,171.33,171.28,18.93267928]
[1748135212986,26.0,171.28,171.21,6.1366]
[1748135213186,26.0,171.28,171.25,19.93267928]
[1748135213696,26.0,171.28,171.26,34.96]
[1748135214109,45.93267928,171.3,171.26,34.96]
[1748135214416,18.64964886,171.36,171.27,19.93267928]
[1748135214722,18.64964886,171.36,171.26,34.96]
[1748135214723,26.0,171.32,171.28,19.93267928]
[1748135215786,26.0,171.32,171.26,34.96]
[1748135215787,26.0,171.32,171.29,19.93267928]
[1748135215988,26.0,171.32,171.3,34.96]
[1748135216202,19.93267928,171.36,171.31,19.93267928]
[1748135216519,45.93267928,171.36,171.31,19.93267928]
[1748135216693,18.64964886,171.4,171.32,19.93267928]
[1748135216897,19.93267928,171.37,171.32,19.93267928]
[1748135217395,45.93267928,171.35,171.27,8.4283]
[1748135217724,19.93267928,171.29,171.28,268.78]
[1748135217897,19.93267928,171.3,171.28,85.66]
[1748135218739,19.93267928,171.34,171.28,105.59267928]
[1748135218892,19.93267928,171.35,171.28,34.96]
[1748135219094,19.93267928,171.36,171.31,19.93267928]
[1748135219307,19.93267928,171.36,171.32,34.96]
[1748135219813,19.93267928,171.35,171.32,34.96]
[1748135220911,19.93267928,171.36,171.32,34.96]
[1748135221110,19.93267928,171.35,171.32,34.96]
[1748135221330,19.93267928,171.34,171.32,34.96]
[1748135221517,19.93267928,171.34,171.33,34.96]
[1748135222240,19.93267928,171.35,171.29,19.93267928]
[1748135222445,26.0,171.33,171.3,34.96]
[1748135222643,26.0,171.3,171.23,6.4416]
[1748135222808,19.93267928,171.26,171.24,34.96]
[1748135223227,26.0,171.3,171.24,34.96]
[1748135223228,19.93267928,171.25,171.24,34.96]
[1748135223417,45.93267928,171.26,171.24,34.96]
[1748135223618,19.93267928,171.25,171.24,34.96]
[1748135223828,19.93267928,171.25,171.2,19.93267928]
[1748135224029,19.93267928,171.21,171.15,6.6574]
[1748135224235,19.93267928,171.17,171.16,34.94]
[1748135224707,45.93267928,171.17,171.11,6.6574]
[1748135224912,19.93267928,171.15,171.12,34.94]
[1748135225416,26.0,171.17,171.13,34.94]
[1748135225417,19.93267928,171.14,171.13,34.94]
[1748135225630,19.93267928,171.15,171.1,19.93267928]
[1748135225831,19.93267928,171.14,171.11,34.94]
[1748135226240,26.0,171.17,171.11,34.94]
[1748135226414,19.93267928,171.22,171.16,19.93267928]
[1748135226613,19.93267928,171.23,171.18,19.93267928]
[1748135227364,4.00060296,171.27,171.22,19.93267928]
[1748135227651,4.00060296,171.27,171.24,19.93267928]
[1748135228426,45.93267928,171.29,171.24,19.93267928]
[1748135228762,19.93267928,171.29,171.24,19.93267928]
[1748135229250,19.93267928,171.3,171.25,19.93267928]
[1748135229661,30.31846031,171.3,171.25,30.31846031]
[1748135230355,30.31846031,171.27,171.18,8.76]
[1748135230532,30.31846031,171.27,171.22,30.31846031]
[1748135230732,30.31846031,171.28,171.23,30.31846031]
[1748135230952,56.31846031,171.31,171.26,30.31846031]
[1748135231139,0.14216157,171.36,171.27,65.27846031]
[1748135231350,30.31846031,171.31,171.27,34.96]
[1748135231567,30.31846031,171.32,171.27,65.27846031]
[1748135233355,30.31846031,171.29,171.27,34.96]
[1748135233855,18.64964886,171.33,171.27,34.96]
[1748135234058,30.31846031,171.31,171.27,34.96]
[1748135234477,30.31846031,171.32,171.27,65.27846031]
[1748135235345,30.31846031,171.3,171.27,34.96]
[1748135236662,30.31846031,171.31,171.27,34.96]
[1748135237049,26.0,171.33,171.27,65.27846031]
[1748135237245,30.31846031,171.36,171.31,30.31846031]
[1748135237476,30.31846031,171.37,171.32,334.13846031]
[1748135237774,30.31846031,171.36,171.32,85.68]
[1748135237956,30.31846031,171.37,171.32,65.27846031]
[1748135238868,30.31846031,171.37,171.32,34.96]
[1748135239170,30.31846031,171.33,171.28,6.4342]
[1748135239384,30.31846031,171.29,171.24,30.31846031]
[1748135239550,30.31846031,171.29,171.25,34.96]
[1748135239751,30.31846031,171.3,171.25,65.27846031]
[1748135239944,0.14216157,171.38,171.25,65.27846031]
[1748135239945,16.1809,171.43,171.27,30.31846031]
[1748135240159,30.31846031,171.35,171.3,30.31846031]
[1748135240366,30.31846031,171.32,171.31,34.96]
[1748135241976,26.0,171.4,171.31,34.96]
[1748135242165,30.31846031,171.34,171.31,34.96]
[1748135242370,4.00060296,171.41,171.31,34.96]
[1748135242660,0.14216157,171.42,171.33,30.31846031]
[1748135242883,4.11927475,171.42,171.34,30.31846031]
[1748135243188,4.11927475,171.42,171.33,6.2013]
[1748135243353,30.31846031,171.41,171.36,30.31846031]
[1748135243558,30.31846031,171.41,171.37,34.96]
[1748135243862,30.00060296,171.43,171.37,34.96]
[1748135243863,30.31846031,171.4,171.37,34.96]
[1748135244266,30.00060296,171.43,171.37,34.96]
[1748135244267,26.0,171.42,171.37,34.96]
[1748135244478,30.31846031,171.39,171.37,34.96]
[1748135244868,30.31846031,171.4,171.37,34.96]
[1748135245092,26.0,171.42,171.37,34.96]
[1748135245298,30.31846031,171.41,171.37,34.96]
[1748135245998,18.64964886,171.45,171.37,65.27846031]
[1748135246170,4.14276453,171.47,171.39,30.31846031]
[1748135246356,30.31846031,171.45,171.4,30.31846031]
[1748135246557,4.00060296,171.49,171.4,30.31846031]
[1748135246757,30.31846031,171.47,171.42,30.31846031]
[1748135247052,4.00060296,171.49,171.44,30.31846031]
[1748135247475,34.31906327,171.49,171.45,268.32]
[1748135247874,30.31846031,171.46,171.4,30.31846031]
[1748135248056,30.31846031,171.45,171.41,85.22]
[1748135248657,30.31846031,171.46,171.41,115.53846031]
[1748135248858,30.31846031,171.46,171.41,65.25846031]
[1748135249078,30.31846031,171.49,171.44,30.31846031]
[1748135249268,30.31846031,171.48,171.43,30.31846031]
[1748135250186,26.0,171.5,171.42,30.31846031]
[1748135250187,30.31846031,171.47,171.42,30.31846031]
[1748135250571,26.0,171.5,171.42,30.31846031]
[1748135250762,30.31846031,171.47,171.42,30.31846031]
[1748135251768,19.91236301,171.47,171.42,19.91236301]
[1748135252291,19.91236301,171.48,171.43,19.91236301]
[1748135253795,19.91236301,171.45,171.3,10.0]
[1748135253973,19.91236301,171.42,171.37,19.91236301]
[1748135254689,19.91236301,171.38,171.33,6.2013]
[1748135254860,19.91236301,171.36,171.34,34.94]
[1748135255064,19.91236301,171.39,171.34,54.85236301]
[1748135256484,19.91236301,171.37,171.33,6.2013]
[1748135256913,19.91236301,171.38,171.33,26.11366301]
[1748135257287,19.91236301,171.41,171.35,19.91236301]
[1748135257488,19.91236301,171.41,171.36,70.17236301]
[1748135257801,19.91236301,171.41,171.36,50.26]
[1748135257997,19.91236301,171.42,171.37,19.91236301]
[1748135258311,19.91236301,171.43,171.38,19.91236301]
[1748135258610,19.91236301,171.43,171.39,34.94]
[1748135259015,19.91236301,171.42,171.39,34.94]
[1748135261315,19.91236301,171.41,171.39,34.94]
[1748135261631,19.91236301,171.4,171.33,6.2013]
[1748135261926,19.91236301,171.4,171.25,10.0]
[1748135261927,19.91236301,171.34,171.29,6.3125]
[1748135262124,19.91236301,171.33,171.3,34.94]
[1748135263028,19.91236301,171.34,171.3,34.94]
[1748135264025,19.91236301,171.33,171.29,6.3125]
[1748135264236,19.91236301,171.33,171.25,1.971]
[1748135264237,19.91236301,171.32,171.3,34.94]
[1748135264405,19.91236301,171.32,171.31,34.94]
[1748135266718,19.91236301,171.32,171.27,19.91236301]
[1748135267031,19.91236301,171.28,171.25,6.3125]
[1748135267241,19.91236301,171.3,171.26,34.94]
[1748135267622,19.91236301,171.3,171.27,268.26]
[1748135267823,26.0,171.34,171.27,268.26]